bitfinex/quotes_SOLUSD_20250701
["timestamp","ask_amount","ask_price","bid_price","bid_amount"]
[1751377663798,0.1,148.12,148.08,9.20457753]
[1751377664552,0.1,148.12,148.1,9.20457753]
[1751377664975,0.1,148.12,148.11,9.20457753]
[1751377665184,0.1,148.12,148.07,0.2]
[1751377665475,0.1,148.12,148.1,9.20457753]
[1751377665879,0.1,148.12,148.11,9.20457753]
[1751377666080,0.1,148.12,148.11,27.85422639]
[1751377666591,0.1,148.12,148.07,26.2]
[1751377666767,0.1,148.12,148.11,9.20457753]
[1751377668668,0.1,148.12,148.11,29.40952639]
[1751377673684,0.1,148.12,148.11,36.4455881]
[1751377674965,0.1,148.18,148.11,36.4455881]
[1751377675183,0.1,148.18,148.17,27.85422639]
[1751377675493,0.1,148.18,148.13,55.7]
[1751377675666,0.1,148.18,148.17,9.20457753]
[1751377676604,0.1,148.18,148.17,34.15964953]
[1751377676901,0.1,148.18,148.17,35.72674953]
[1751377677386,0.1,148.18,148.17,42.47575405]
[1751377678201,0.1,148.18,148.17,65.40674953]
[1751377679276,0.1,148.18,148.17,35.44242639]
[1751377679882,0.1,148.18,148.17,26.23784886]
[1751377680087,0.1,148.18,148.17,35.44242639]
[1751377681294,0.1,148.18,148.17,33.87532639]
[1751377681491,0.1,148.18,148.17,9.20457753]
[1751377683186,0.1,148.18,148.16,48.32964886]
[1751377683393,0.1,148.18,148.17,9.20457753]
[1751377684118,0.1,148.18,148.17,9.48890067]
[1751377684405,0.1,148.18,148.17,60.88755405]
[1751377684578,0.1,148.21,148.18,18.933972]
[1751377684784,0.1,148.21,148.2,27.85422639]
[1751377686901,0.1,148.21,148.18,18.64964886]
[1751377687206,0.1,148.21,148.18,9.20457753]
[1751377687409,0.1,148.21,148.19,9.20457753]
[1751377688208,0.1,148.21,148.18,9.20457753]
[1751377688504,0.1,148.21,148.2,27.85422639]
[1751377690895,0.1,148.21,148.2,18.64964886]
[1751377691096,0.1,148.21,148.2,27.85422639]
[1751377692598,0.1,148.21,148.2,41.25866471]
[1751377692801,0.1,148.21,148.2,97.18298785]
[1751377693004,0.1,148.21,148.2,90.43534953]
[1751377693413,0.1,148.21,148.2,72.75598785]
[1751377693813,0.1,148.21,148.2,66.00834953]
[1751377694423,0.1,148.21,148.2,72.75598785]
[1751377695022,0.1,148.21,148.2,66.00834953]
[1751377695221,0.1,148.21,148.2,82.51944886]
[1751377695422,0.1,148.21,148.2,90.29318796]
[1751377695727,0.1,148.21,148.2,90.15102639]
[1751377696231,0.1,148.21,148.2,27.85422639]
[1751377696827,0.1,148.21,148.2,57.47422639]
[1751377697942,0.1,148.21,148.2,27.85422639]
[1751377698127,0.1,148.21,148.16,6.0848]
[1751377698318,0.1,148.21,148.18,9.20457753]
[1751377698512,0.1,148.21,148.19,9.20457753]
[1751377699030,0.1,148.21,148.17,18.64964886]
[1751377699341,0.1,148.21,148.18,9.20457753]
[1751377700316,9.30457753,148.21,148.17,9.20457753]
[1751377700732,9.20457753,148.2,148.16,9.20457753]
[1751377701109,0.1,148.21,148.19,9.20457753]
[1751377701305,0.1,148.21,148.2,9.20457753]
[1751377702306,0.1,148.21,148.2,27.85422639]
[1751377702517,0.1,148.21,148.2,18.64964886]
[1751377702737,0.1,148.21,148.2,27.85422639]
[1751377703240,0.1,148.21,148.2,9.20457753]
[1751377703816,0.1,148.21,148.19,9.20457753]
[1751377704435,0.1,148.21,148.18,27.85422639]
[1751377704641,0.1,148.21,148.15,29.6]
[1751377704854,0.1,148.21,148.18,9.20457753]
[1751377705353,0.1,148.21,148.15,55.6]
[1751377705712,0.1,148.21,148.18,9.20457753]
[1751377705914,0.1,148.21,148.17,9.20457753]
[1751377706134,9.30457753,148.21,148.17,9.20457753]
[1751377706340,9.30457753,148.21,148.16,18.64964886]
[1751377706541,9.20457753,148.19,148.12,0.2]
[1751377706736,9.20457753,148.19,148.15,9.20457753]
[1751377707039,9.20457753,148.2,148.15,9.20457753]
[1751377707235,9.20457753,148.2,148.16,9.20457753]
[1751377707822,9.30457753,148.21,148.17,9.20457753]
[1751377709037,9.30457753,148.21,148.16,9.20457753]
[1751377709346,9.20457753,148.2,148.15,9.20457753]
[1751377709641,9.20457753,148.2,148.15,9.40457753]
[1751377710023,9.20457753,148.2,148.16,9.20457753]
[1751377710244,9.30457753,148.21,148.17,9.20457753]
[1751377710438,0.1,148.21,148.18,9.20457753]
[1751377710741,0.1,148.21,148.19,9.20457753]
[1751377711130,0.1,148.21,148.2,27.85422639]
[1751377711844,0.1,148.21,148.2,24.0087603]
[1751377712542,0.1,148.21,148.2,18.64964886]
[1751377712725,0.1,148.21,148.2,24.0087603]
[1751377713826,0.1,148.21,148.2,27.83659336]
[1751377715447,0.1,148.21,148.2,9.1869445]
[1751377715755,0.1,148.21,148.19,9.1869445]
[1751377716332,0.1,148.21,148.17,18.64964886]
[1751377716638,0.1,148.21,148.17,27.83659336]
[1751377717226,0.1,148.21,148.18,9.1869445]
[1751377717760,9.2869445,148.21,148.17,27.83659336]
[1751377717931,9.2869445,148.21,148.17,18.64964886]
[1751377718264,9.1869445,148.2,148.16,9.1869445]
[1751377719127,9.1869445,148.19,148.15,28.03659336]
[1751377719340,9.1869445,148.2,148.16,9.1869445]
[1751377719566,9.2869445,148.21,148.17,9.1869445]
[1751377720627,0.1,148.21,148.16,9.1869445]
[1751377720929,9.1869445,148.2,148.16,9.1869445]
[1751377722626,9.1869445,148.19,148.15,28.03659336]
[1751377722829,0.1,148.21,148.15,28.03659336]
[1751377723148,9.1869445,148.19,148.15,9.3869445]
[1751377723364,9.1869445,148.18,148.16,10.0]
[1751377723659,9.1869445,148.17,148.16,10.0]
[1751377726663,9.1869445,148.17,148.16,10.2]
[1751377728072,35.1869445,148.17,148.16,10.2]
[1751377728376,9.1869445,148.17,148.15,0.2]
[1751377728582,9.1869445,148.16,148.15,0.2]
[1751377730586,7.8617,148.21,148.15,0.2]
[1751377730587,9.1869445,148.17,148.15,0.2]
[1751377730875,26.0,148.18,148.15,0.2]
[1751377731048,9.1869445,148.18,148.15,0.2]
[1751377734978,9.1869445,148.19,148.15,0.2]
[1751377735179,0.1,148.21,148.15,9.3869445]
[1751377735477,9.1869445,148.19,148.15,9.3869445]
[1751377736072,9.1869445,148.19,148.15,18.84964886]
[1751377736267,9.1869445,148.18,148.15,0.3]
[1751377737358,9.1869445,148.17,148.15,0.3]
[1751377737763,5.36500689,148.18,148.15,0.3]
[1751377737968,0.1,148.21,148.15,0.3]
[1751377738259,0.1,148.21,148.18,5.36500689]
[1751377738559,0.1,148.21,148.2,24.01465575]
[1751377738976,0.1,148.23,148.22,44.64964886]
[1751377739176,0.1,148.23,148.22,50.29897889]
[1751377739358,0.1,148.23,148.22,50.01465575]
[1751377739682,0.1,148.23,148.2,18.64964886]
[1751377739864,9.1915706,148.22,148.19,1.639]
[1751377740178,0.1,148.23,148.2,18.64964886]
[1751377740981,9.2915706,148.23,148.2,18.64964886]
[1751377741179,0.1,148.23,148.22,18.64964886]
[1751377741389,0.1,148.23,148.21,18.64964886]
[1751377742051,0.1,148.23,148.19,1.639]
[1751377742257,0.1,148.23,148.2,18.64964886]
[1751377742686,9.1915706,148.21,148.17,9.1915706]
[1751377742861,0.1,148.23,148.16,27.84121946]
[1751377743063,9.1915706,148.2,148.16,27.84121946]
[1751377744182,9.2915706,148.23,148.19,9.1915706]
[1751377744485,9.2915706,148.23,148.16,18.64964886]
[1751377744695,9.1915706,148.21,148.17,9.1915706]
[1751377744860,0.1,148.23,148.19,0.2]
[1751377745059,9.1915706,148.22,148.19,0.2]
[1751377745555,9.1915706,148.2,148.19,0.2]
[1751377746283,26.0,148.21,148.19,0.2]
[1751377747099,35.1915706,148.21,148.19,0.2]
[1751377748080,26.0,148.21,148.19,0.2]
[1751377748286,35.1915706,148.21,148.19,0.2]
[1751377748598,9.1915706,148.2,148.19,0.2]
[1751377748969,9.1915706,148.22,148.19,0.2]
[1751377749790,0.1,148.23,148.19,9.3915706]
[1751377749961,0.1,148.23,148.22,9.1915706]
[1751377751897,0.1,148.23,148.22,27.84121946]
[1751377753171,0.1,148.23,148.22,37.03279006]
[1751377753896,0.1,148.23,148.22,37.3171132]
[1751377754990,0.2,148.27,148.23,25.013372]
[1751377755302,0.2,148.27,148.26,27.84121946]
[1751377756590,0.1,148.29,148.28,44.64964886]
[1751377756791,0.2,148.34,148.29,18.64964886]
[1751377757007,0.2,148.34,148.32,37.03279006]
[1751377758671,0.2,148.34,148.32,18.64964886]
[1751377758877,0.2,148.34,148.32,9.1915706]
[1751377759307,0.2,148.34,148.3,18.64964886]
[1751377759600,0.2,148.34,148.32,9.1915706]
[1751377760272,0.2,148.34,148.32,18.3831412]
[1751377760670,0.2,148.34,148.33,20.15344886]
[1751377760909,0.2,148.4,148.33,29.34501946]
[1751377761110,0.2,148.4,148.39,9.1915706]
[1751377761596,0.2,148.4,148.39,27.84121946]
[1751377761779,0.2,148.4,148.39,9.1915706]
[1751377763213,0.2,148.4,148.39,27.84121946]
[1751377763385,0.2,148.4,148.39,28.1255426]
[1751377763983,0.2,148.4,148.39,66.7371132]
[1751377764210,0.2,148.4,148.39,57.5455426]
[1751377764406,0.2,148.4,148.39,66.7371132]
[1751377764812,0.2,148.41,148.4,43.5919132]
[1751377765016,0.2,148.41,148.4,69.5919132]
[1751377765510,0.2,148.41,148.4,50.92444886]
[1751377765713,0.2,148.41,148.4,18.64964886]
[1751377766004,0.2,148.41,148.4,27.84121946]
[1751377766716,0.2,148.41,148.39,9.1915706]
[1751377767188,0.2,148.41,148.4,9.1915706]
[1751377768111,0.2,148.41,148.4,27.84121946]
[1751377769624,0.2,148.41,148.4,18.64964886]
[1751377769808,0.2,148.41,148.4,27.84121946]
[1751377770007,0.2,148.41,148.4,9.1915706]
[1751377770329,0.2,148.41,148.39,27.84121946]
[1751377770621,9.3915706,148.41,148.34,18.64964886]
[1751377770824,9.3915706,148.41,148.37,9.1915706]
[1751377771200,0.2,148.41,148.4,27.84121946]
[1751377771938,0.2,148.41,148.4,18.64964886]
[1751377772105,0.2,148.41,148.4,27.84121946]
[1751377772498,0.2,148.41,148.4,28.1255426]
[1751377772921,0.2,148.41,148.4,73.43565767]
[1751377773124,0.2,148.41,148.4,75.03615767]
[1751377773425,0.2,148.41,148.4,68.2976132]
[1751377773819,0.2,148.41,148.4,75.03615767]
[1751377774016,0.2,148.41,148.4,68.2976132]
[1751377774221,0.2,148.41,148.4,67.7976132]
[1751377775408,0.2,148.41,148.4,67.8976132]
[1751377775723,0.2,148.41,148.4,58.7060426]
[1751377777215,0.2,148.41,148.4,18.24964886]
[1751377777414,0.2,148.41,148.4,27.44121946]
[1751377778151,0.2,148.41,148.4,27.7255426]
[1751377779144,0.2,148.41,148.4,27.9255426]
[1751377780521,0.2,148.41,148.4,43.85565767]
[1751377780722,0.2,148.41,148.4,27.9255426]
[1751377781448,0.2,148.41,148.4,37.1171132]
[1751377782231,0.2,148.41,148.4,27.9255426]
[1751377783650,0.1,148.47,148.4,43.85565767]
[1751377783845,0.1,148.47,148.45,18.64964886]
[1751377784018,0.1,148.47,148.46,27.84121946]
[1751377788738,0.1,148.47,148.46,28.1255426]
[1751377791150,0.1,148.47,148.46,18.64964886]
[1751377791353,0.1,148.47,148.46,56.92121946]
[1751377792444,0.1,148.47,148.46,63.94136369]
[1751377792651,0.2,148.51,148.5,27.84121946]
[1751377792838,0.2,148.51,148.5,66.11279006]
[1751377793446,0.2,148.51,148.5,92.3971132]
[1751377793635,0.1,148.53,148.52,44.64964886]
[1751377793835,0.1,148.53,148.52,82.92121946]
[1751377797240,0.1,148.53,148.52,47.72964886]
[1751377797448,0.1,148.53,148.52,27.84121946]
[1751377797941,0.1,148.53,148.52,18.64964886]
[1751377798154,0.1,148.53,148.52,27.84121946]
[1751377802126,0.1,148.53,148.52,18.64964886]
[1751377802321,0.1,148.53,148.52,27.84121946]
[1751377802861,0.1,148.53,148.52,28.1255426]
[1751377803226,0.1,148.53,148.52,34.85864251]
[1751377803745,0.1,148.54,148.53,44.933972]
[1751377804057,0.1,148.57,148.56,44.933972]
[1751377804255,0.1,148.57,148.56,83.2255426]
[1751377804428,0.1,148.57,148.56,82.94121946]
[1751377804747,0.1,148.57,148.56,27.84121946]
[1751377805447,8.9915706,148.6,148.56,27.84121946]
[1751377805645,9.1915706,148.59,148.55,18.64964886]
[1751377805826,9.1915706,148.58,148.55,18.64964886]
[1751377806040,9.1915706,148.58,148.54,18.64964886]
[1751377806342,9.1915706,148.57,148.5,7.7457]
[1751377806548,9.1915706,148.57,148.53,18.64964886]
[1751377806946,9.1915706,148.56,148.53,18.64964886]
[1751377807270,9.1915706,148.55,148.52,18.64964886]
[1751377807571,32.5642,148.59,148.52,18.64964886]
[1751377807871,32.5642,148.59,148.53,9.1915706]
[1751377808066,9.1915706,148.57,148.53,9.1915706]
[1751377808648,32.5642,148.59,148.53,9.1915706]
[1751377808947,9.1915706,148.57,148.53,9.1915706]
[1751377809148,9.1915706,148.54,148.48,26.0]
[1751377809361,41.7557706,148.59,148.51,18.64964886]
[1751377809570,9.1915706,148.54,148.51,18.64964886]
[1751377810374,26.0,148.57,148.53,0.1]
[1751377811661,9.1915706,148.54,148.53,0.1]
[1751377812449,9.1915706,148.55,148.53,0.1]
[1751377813182,9.1915706,148.54,148.53,0.1]
[1751377813350,9.1915706,148.55,148.53,0.1]
[1751377813544,35.1915706,148.56,148.53,0.1]
[1751377814087,9.1915706,148.57,148.53,0.1]
[1751377814247,9.1915706,148.57,148.53,18.74964886]
[1751377814859,6.5642,148.59,148.53,27.94121946]
[1751377815061,9.1915706,148.58,148.53,27.94121946]
[1751377815977,9.1915706,148.57,148.53,27.94121946]
[1751377816281,9.1915706,148.57,148.53,9.2915706]
[1751377816447,9.1915706,148.58,148.53,9.2915706]
[1751377816852,26.0,148.59,148.55,18.64964886]
[1751377817059,35.1915706,148.59,148.55,9.1915706]
[1751377817261,9.1915706,148.58,148.54,9.1915706]
[1751377817462,9.1915706,148.58,148.55,18.64964886]
[1751377817662,35.1915706,148.59,148.55,9.1915706]
[1751377818284,26.0,148.59,148.55,9.1915706]
[1751377818575,26.0,148.59,148.53,0.1]
[1751377818775,35.1915706,148.59,148.55,9.1915706]
[1751377819648,26.0,148.61,148.56,9.1915706]
[1751377819983,1.5886,148.64,148.57,27.84121946]
[1751377820158,9.1915706,148.63,148.59,18.64964886]
[1751377820357,9.1915706,148.63,148.59,27.84121946]
[1751377820570,26.0,148.64,148.59,27.84121946]
[1751377820775,9.1915706,148.64,148.6,9.1915706]
[1751377821084,0.1,148.66,148.63,9.1915706]
[1751377821283,0.1,148.66,148.6,18.64964886]
[1751377821484,0.1,148.66,148.65,9.1915706]
[1751377822481,0.1,148.66,148.65,28.1255426]
[1751377822654,1.4386278,148.72,148.68,26.0]
[1751377822851,1.4386278,148.72,148.71,27.84121946]
[1751377823752,1.4386278,148.72,148.71,18.64964886]
[1751377823952,1.4386278,148.72,148.71,27.84121946]
[1751377824388,1.4386278,148.72,148.71,28.1255426]
[1751377824571,1.4386278,148.72,148.71,54.1255426]
[1751377824871,1.4386278,148.72,148.71,67.46113994]
[1751377825187,1.4386278,148.72,148.71,60.45231946]
[1751377825365,1.4386278,148.72,148.67,34.3055]
[1751377825673,9.1915706,148.7,148.66,9.1915706]
[1751377825875,9.1915706,148.69,148.63,6.2055]
[1751377826075,9.1915706,148.68,148.64,9.1915706]
[1751377826253,27.4386278,148.72,148.63,9.1915706]
[1751377826586,26.0,148.71,148.63,9.1915706]
[1751377826789,26.0,148.71,148.64,18.64964886]
[1751377826965,26.0,148.71,148.63,9.1915706]
[1751377826966,9.1915706,148.65,148.59,6.2672]
[1751377827157,1.4386278,148.72,148.64,9.1915706]
[1751377827358,1.4386278,148.72,148.66,6.0355]
[1751377827560,1.4386278,148.72,148.67,18.64964886]
[1751377827766,10.6301984,148.72,148.67,27.84121946]
[1751377828171,1.4386278,148.72,148.68,9.1915706]
[1751377828669,10.7301984,148.72,148.68,9.1915706]
[1751377829279,10.7301984,148.72,148.66,18.64964886]
[1751377829480,1.5386278,148.72,148.68,9.1915706]
[1751377830495,1.5386278,148.72,148.66,18.64964886]
[1751377830669,1.5386278,148.72,148.68,9.1915706]
[1751377831397,1.5386278,148.72,148.69,9.1915706]
[1751377831569,1.5386278,148.72,148.7,9.1915706]
[1751377832224,1.5386278,148.72,148.69,26.0]
[1751377832386,1.5386278,148.72,148.7,9.1915706]
[1751377833991,1.5386278,148.72,148.68,18.64964886]
[1751377834172,1.5386278,148.72,148.68,26.0]
[1751377834368,1.5386278,148.72,148.69,9.1915706]
[1751377834583,1.5386278,148.72,148.7,9.1915706]
[1751377835508,1.5386278,148.72,148.71,9.1915706]
[1751377835997,1.5386278,148.72,148.68,26.1]
[1751377836204,10.7301984,148.72,148.68,0.1]
[1751377836381,9.1915706,148.71,148.68,0.1]
[1751377836701,9.1915706,148.69,148.68,0.1]
[1751377837077,18.3831412,148.69,148.68,0.1]
[1751377837378,9.1915706,148.69,148.68,0.1]
[1751377838201,18.3831412,148.69,148.61,44.64964886]
[1751377838373,9.1915706,148.62,148.61,44.64964886]
[1751377838795,9.1915706,148.62,148.61,26.0]
[1751377839078,9.1915706,148.62,148.6,1.6569]
[1751377839401,9.1915706,148.61,148.6,46.30654886]
[1751377842213,9.1915706,148.68,148.61,18.64964886]
[1751377842494,9.1915706,148.68,148.61,44.64964886]
[1751377842495,9.1915706,148.62,148.61,44.64964886]
[1751377844800,26.0,148.71,148.61,44.64964886]
[1751377845112,9.1915706,148.62,148.61,44.84964886]
[1751377845294,1.5386278,148.72,148.64,26.0]
[1751377845494,9.1915706,148.65,148.64,26.0]
[1751377845890,9.1915706,148.65,148.62,26.0]
[1751377846094,9.1915706,148.68,148.62,26.0]
[1751377846095,9.1915706,148.63,148.62,44.64964886]
[1751377848800,9.1915706,148.68,148.62,44.933972]
[1751377849110,9.1915706,148.68,148.63,18.64964886]
[1751377849312,9.1915706,148.68,148.64,24.08]
[1751377849510,9.1915706,148.68,148.62,26.0]
[1751377849894,8.1915706,148.68,148.63,18.64964886]
[1751377850095,9.1915706,148.68,148.63,42.72964886]
[1751377850322,9.1915706,148.64,148.63,42.72964886]
[1751377850897,1.5386278,148.72,148.66,26.0]
[1751377851107,1.5386278,148.72,148.67,18.64964886]
[1751377851313,9.1915706,148.68,148.67,18.64964886]
[1751377851992,18.3831412,148.68,148.66,24.08]
[1751377852198,18.3831412,148.68,148.64,24.08]
[1751377852199,9.1915706,148.67,148.64,24.08]
[1751377852502,9.1915706,148.65,148.64,42.72964886]
[1751377853722,9.1915706,148.68,148.65,18.64964886]
[1751377853918,9.1915706,148.66,148.65,18.64964886]
[1751377855102,9.1915706,148.66,148.64,18.64964886]
[1751377855423,1.5386278,148.72,148.66,18.64964886]
[1751377856729,9.1915706,148.68,148.66,18.64964886]
[1751377857099,9.1915706,148.68,148.66,44.64964886]
[1751377857707,9.1915706,148.67,148.66,44.64964886]
[1751377858326,9.1915706,148.68,148.66,51.37632511]
[1751377858500,9.1915706,148.69,148.68,18.64964886]
[1751377860326,1.5386278,148.72,148.68,44.64964886]
[1751377860532,1.5386278,148.72,148.69,24.1]
[1751377860906,1.5386278,148.72,148.68,26.0]
[1751377861626,9.1915706,148.69,148.68,44.64964886]
[1751377861803,1.5386278,148.72,148.69,18.64964886]
[1751377862007,9.1915706,148.7,148.66,0.1]
[1751377862317,9.1915706,148.67,148.66,68.82964886]
[1751377862704,0.1,148.69,148.66,0.1]
[1751377862922,9.1915706,148.67,148.66,0.1]
[1751377864832,9.1915706,148.67,148.62,0.2]
[1751377865140,9.1915706,148.68,148.56,29.32]
[1751377865141,9.1915706,148.63,148.56,29.32]
[1751377865332,9.1915706,148.57,148.56,29.32]
[1751377865533,9.1915706,148.57,148.56,26.2]
[1751377866031,5.02186346,148.65,148.57,18.64964886]
[1751377866433,9.1915706,148.58,148.57,18.64964886]
[1751377868131,9.1915706,148.58,148.56,18.84964886]
[1751377868315,32.0141,148.66,148.57,68.72964886]
[1751377868515,9.1915706,148.58,148.57,68.72964886]
[1751377870210,32.0141,148.66,148.57,75.46048281]
[1751377870211,26.0,148.66,148.57,75.46048281]
[1751377870410,9.1915706,148.68,148.58,18.64964886]
[1751377870606,9.1915706,148.62,148.6,44.64964886]
[1751377870836,9.1915706,148.68,148.6,44.64964886]
[1751377870837,9.1915706,148.61,148.6,68.72964886]
[1751377871215,9.1915706,148.63,148.61,18.64964886]
[1751377871415,9.1915706,148.68,148.61,18.64964886]
[1751377871825,9.1915706,148.63,148.61,18.64964886]
[1751377872434,9.1915706,148.62,148.61,18.64964886]
[1751377873222,9.1915706,148.64,148.63,26.0]
[1751377873533,9.1915706,148.66,148.64,18.64964886]
[1751377873936,9.1915706,148.65,148.64,18.64964886]
[1751377875018,9.1915706,148.68,148.64,18.64964886]
[1751377875245,9.1915706,148.65,148.63,50.08]
[1751377875538,9.1915706,148.64,148.63,68.72964886]
[1751377876235,9.1915706,148.64,148.63,44.64964886]
[1751377876536,9.1915706,148.64,148.63,68.72964886]
[1751377877031,0.1,148.69,148.64,18.64964886]
[1751377877216,9.1915706,148.65,148.64,18.64964886]
[1751377879055,0.1,148.69,148.64,18.64964886]
[1751377879342,9.1915706,148.65,148.64,18.64964886]
[1751377879636,9.1915706,148.65,148.64,42.72964886]
[1751377881824,9.1915706,148.65,148.63,26.2]
[1751377882025,9.2915706,148.68,148.64,24.08]
[1751377882225,9.1915706,148.65,148.64,24.08]
[1751377882438,9.1915706,148.65,148.63,18.84964886]
[1751377882636,9.1915706,148.65,148.64,24.08]
[1751377882837,9.1915706,148.65,148.63,42.92964886]
[1751377883137,9.1915706,148.64,148.63,42.92964886]
[1751377883843,9.2915706,148.68,148.63,42.92964886]
[1751377884038,9.1915706,148.64,148.63,42.92964886]
[1751377885126,9.1915706,148.64,148.63,0.2]
[1751377887034,9.2915706,148.68,148.63,18.84964886]
[1751377887247,9.1915706,148.64,148.63,18.84964886]
[1751377887842,9.1915706,148.64,148.63,0.2]
[1751377888038,9.1915706,148.64,148.63,26.2]
[1751377888846,9.1915706,148.64,148.63,44.84964886]
[1751377890064,0.1,148.68,148.63,44.84964886]
[1751377890230,0.1,148.68,148.64,42.72964886]
[1751377890554,5.33101236,148.65,148.64,42.72964886]
[1751377890723,5.43101236,148.68,148.64,42.72964886]
[1751377890924,5.33101236,148.65,148.64,42.72964886]
[1751377891445,0.1,148.68,148.65,0.14216157]
[1751377891646,5.33101236,148.67,148.66,50.08]
[1751377891841,0.1,148.68,148.67,18.64964886]
[1751377892156,0.1,148.68,148.67,18.79181043]
[1751377893456,0.1,148.68,148.67,25.51811701]
[1751377894738,0.1,148.68,148.67,25.80244015]
[1751377896055,9.23052297,148.68,148.67,18.79181043]
[1751377896253,0.1,148.68,148.67,25.80244015]
[1751377896936,0.1,148.68,148.67,34.93296312]
[1751377897266,0.1,148.68,148.67,25.80244015]
[1751377899965,0.1,148.68,148.67,19.07613357]
[1751377900168,0.1,148.68,148.67,25.80244015]
[1751377901466,0.1,148.68,148.67,34.93296312]
[1751377902563,0.1,148.68,148.67,25.80244015]
[1751377903152,0.1,148.68,148.67,34.93296312]
[1751377903663,0.1,148.68,148.67,25.80244015]
[1751377904365,9.23052297,148.68,148.67,18.64964886]
[1751377904545,0.1,148.68,148.67,42.74964886]
[1751377904871,0.1,148.68,148.67,68.74964886]
[1751377905072,9.23052297,148.68,148.67,68.74964886]
[1751377906152,0.1,148.68,148.67,75.47595544]
[1751377906552,0.1,148.68,148.67,75.61811701]
[1751377906754,0.1,148.68,148.67,49.61811701]
[1751377906954,0.1,148.68,148.67,49.90244015]
[1751377908747,9.23052297,148.68,148.67,18.64964886]
[1751377909254,9.23052297,148.68,148.67,42.74964886]
[1751377910149,0.1,148.68,148.67,42.74964886]
[1751377910550,9.23052297,148.68,148.67,42.74964886]
[1751377910750,9.23052297,148.68,148.67,68.74964886]
[1751377911049,0.1,148.68,148.67,42.74964886]
[1751377911576,9.23052297,148.68,148.67,42.74964886]
[1751377913450,9.23052297,148.68,148.67,18.64964886]
[1751377913659,9.23052297,148.68,148.67,42.74964886]
[1751377914472,0.1,148.68,148.67,42.74964886]
[1751377914794,9.23052297,148.68,148.67,42.74964886]
[1751377915765,5.42803478,148.68,148.67,42.74964886]
[1751377916964,10.75606956,148.68,148.63,0.2]
[1751377917290,5.32803478,148.64,148.63,44.84964886]
[1751377917465,5.32803478,148.64,148.63,68.94964886]
[1751377918468,5.32803478,148.64,148.63,0.2]
[1751377918683,5.32803478,148.64,148.63,24.3]
[1751377918881,5.42803478,148.68,148.63,24.3]
[1751377919180,5.32803478,148.64,148.63,18.84964886]
[1751377919389,5.32803478,148.64,148.63,42.94964886]
[1751377920095,5.32803478,148.64,148.63,18.84964886]
[1751377920283,5.32803478,148.64,148.63,42.94964886]
[1751377921285,5.42803478,148.68,148.64,18.64964886]
[1751377921467,5.32803478,148.65,148.64,18.64964886]
[1751377921669,0.1,148.68,148.67,44.64964886]
[1751377921891,1.4386278,148.72,148.68,18.64964886]
[1751377922092,5.32803478,148.69,148.68,18.64964886]
[1751377922476,1.4386278,148.72,148.68,18.64964886]
[1751377922673,5.32803478,148.69,148.68,18.64964886]
[1751377922876,5.32803478,148.69,148.68,42.72964886]
[1751377923196,1.4386278,148.72,148.68,42.72964886]
[1751377923497,5.32803478,148.7,148.68,42.72964886]
[1751377923675,5.32803478,148.69,148.68,42.72964886]
[1751377924070,1.4386278,148.72,148.68,49.45550304]
[1751377924388,5.32803478,148.69,148.68,42.72964886]
[1751377924571,10.65606956,148.69,148.67,24.08]
[1751377924770,10.65606956,148.68,148.67,24.08]
[1751377924966,1.5966,148.71,148.63,18.84964886]
[1751377925199,1.5966,148.71,148.64,24.08]
[1751377925200,5.32803478,148.68,148.64,24.08]
[1751377925396,5.32803478,148.65,148.64,44.64964886]
[1751377925571,5.32803478,148.65,148.64,68.72964886]
[1751377926471,1.4386278,148.72,148.65,18.64964886]
[1751377926773,1.4386278,148.72,148.67,18.64964886]
[1751377926972,1.4386278,148.72,148.68,24.08]
[1751377927788,5.32803478,148.69,148.68,24.08]
[1751377929298,10.65606956,148.69,148.68,24.08]
[1751377929669,10.65606956,148.69,148.64,44.64964886]
[1751377929894,5.32803478,148.65,148.64,44.64964886]
[1751377930192,5.32803478,148.65,148.64,68.72964886]
[1751377930395,5.32803478,148.68,148.64,50.08]
[1751377930593,5.32803478,148.65,148.64,50.08]